bitfinex/quotes_SOLUSD_20240821
["timestamp","ask_amount","ask_price","bid_price","bid_amount"]
[1724277308298,22.1809,143.87,143.8,12.97]
[1724277308501,45.0,143.86,143.8,12.97]
[1724277309732,45.0,143.86,143.82,12.97]
[1724277310103,22.1809,143.87,143.82,12.97]
[1724277310431,16.1784,143.87,143.82,12.97]
[1724277310620,16.1784,143.87,143.8,20.0]
[1724277310621,16.1784,143.87,143.84,12.97]
[1724277312401,5.49607429,143.86,143.84,12.97]
[1724277312614,5.49607429,143.85,143.84,12.97]
[1724277314820,5.49597927,143.85,143.84,12.97]
[1724277316727,15.2226,143.9,143.84,32.97]
[1724277317028,5.49552813,143.89,143.84,32.97]
[1724277317328,5.49552813,143.88,143.84,32.97]
[1724277317526,5.49552813,143.87,143.84,32.97]
[1724277317824,5.49552813,143.86,143.84,32.97]
[1724277318042,15.2226,143.9,143.84,32.97]
[1724277318329,45.0,143.89,143.84,32.97]
[1724277318516,5.49542639,143.88,143.84,32.97]
[1724277318706,5.49542639,143.87,143.84,32.97]
[1724277318910,45.0,143.89,143.84,32.97]
[1724277319111,5.49542773,143.88,143.84,32.97]
[1724277319410,5.49542773,143.87,143.84,32.97]
[1724277319615,45.0,143.89,143.84,32.97]
[1724277319823,5.49545732,143.88,143.84,32.97]
[1724277320015,5.49545732,143.87,143.84,32.97]
[1724277320217,45.0,143.89,143.84,32.97]
[1724277320429,5.49544005,143.88,143.84,32.97]
[1724277320619,5.49544005,143.87,143.84,32.97]
[1724277320823,15.2226,143.9,143.84,32.97]
[1724277321129,15.2226,143.9,143.84,20.0]
[1724277321130,5.49543842,143.89,143.84,20.0]
[1724277321330,50.49543842,143.88,143.77,42.4713]
[1724277321506,45.0,143.88,143.82,12.97]
[1724277321707,5.49628069,143.87,143.82,12.97]
[1724277321920,45.0,143.86,143.82,12.97]
[1724277322124,45.12549,143.89,143.82,12.97]
[1724277322327,0.12549,143.88,143.79,20.0]
[1724277322514,5.49645158,143.87,143.8,9.48012757]
[1724277322720,50.49645158,143.86,143.81,12.97]
[1724277322935,5.49645158,143.85,143.8,22.45012757]
[1724277323322,45.0,143.84,143.81,20.0]
[1724277324128,45.0,143.84,143.8,9.48012757]
[1724277324328,5.4971154,143.83,143.8,9.48012757]
[1724277324510,45.0,143.84,143.8,9.48012757]
[1724277324713,5.49715068,143.83,143.8,9.48012757]
[1724277324915,50.4974079,143.82,143.8,9.48012757]
[1724277325113,1.73847607,143.83,143.8,9.48012757]
[1724277325424,5.49740953,143.82,143.8,9.48012757]
[1724277325734,45.0,143.84,143.8,9.48012757]
[1724277325935,5.49740769,143.83,143.8,9.48012757]
[1724277326120,50.49740769,143.82,143.8,9.48012757]
[1724277326315,45.0,143.84,143.8,9.48012757]
[1724277326522,5.49741973,143.83,143.8,9.48012757]
[1724277326721,50.49741973,143.82,143.8,9.48012757]
[1724277326925,45.0,143.82,143.8,9.48012757]
[1724277327117,45.0,143.82,143.73,20.0]
[1724277327118,7.23656226,143.81,143.75,22.45012757]
[1724277327312,45.0,143.8,143.76,20.0]
[1724277327535,1.73865958,143.81,143.76,20.0]
[1724277328117,45.0,143.82,143.76,20.0]
[1724277328325,5.49799895,143.81,143.76,20.0]
[1724277328518,50.49799895,143.8,143.76,20.0]
[1724277328722,45.0,143.79,143.76,20.0]
[1724277328932,45.0,143.82,143.76,20.0]
[1724277329134,5.49803295,143.81,143.76,20.0]
[1724277329437,50.49803295,143.8,143.76,20.0]
[1724277329640,45.0,143.82,143.76,20.0]
[1724277329837,45.0,143.79,143.76,20.0]
[1724277332044,45.0,143.79,143.76,32.97]
[1724277334541,45.0,143.79,143.73,12.97]
[1724277334844,45.0,143.79,143.74,20.0]
[1724277335526,5.49884009,143.78,143.74,20.0]
[1724277335717,45.0,143.77,143.74,20.0]
[1724277337042,45.0,143.77,143.73,12.97]
[1724277341050,45.0,143.77,143.71,9.48012757]
[1724277341253,45.0,143.77,143.72,32.97]
[1724277342234,1.73936317,143.76,143.72,32.97]
[1724277344123,45.0,143.77,143.72,32.97]
[1724277347355,45.0,143.77,143.72,20.0]
[1724277347556,45.0,143.77,143.73,12.97]
[1724277347781,45.0,143.77,143.72,20.0]
[1724277347930,1.73925244,143.76,143.72,20.0]
[1724277348247,1.73925244,143.76,143.69,20.0]
[1724277348446,45.0,143.77,143.71,12.97]
[1724277348647,45.0,143.77,143.72,20.0]
[1724277360269,16.0493,143.8,143.72,20.0]
[1724277360469,50.49941346,143.79,143.73,12.97]
[1724277360769,5.49941346,143.78,143.73,12.97]
[1724277360943,45.0,143.79,143.73,12.97]
[1724277361266,5.49941346,143.78,143.73,12.97]
[1724277361445,45.0,143.79,143.73,12.97]
[1724277361645,5.49945932,143.78,143.73,12.97]
[1724277361972,16.0493,143.8,143.73,12.97]
[1724277362166,5.49917198,143.79,143.73,12.97]
[1724277362338,16.0493,143.8,143.73,12.97]
[1724277363766,45.0,143.79,143.73,12.97]
[1724277365058,45.0,143.79,143.75,12.97]
[1724277365259,16.0493,143.8,143.75,12.97]
[1724277365462,5.49863643,143.79,143.75,12.97]
[1724277365657,16.0493,143.8,143.75,12.97]
[1724277365855,5.49863736,143.79,143.75,12.97]
[1724277366063,16.0493,143.8,143.75,12.97]
[1724277366263,5.49863736,143.79,143.75,12.97]
[1724277366468,5.49863736,143.78,143.75,12.97]
[1724277366648,17.78817867,143.8,143.75,12.97]
[1724277366973,5.49863828,143.79,143.75,12.97]
[1724277367167,16.1553,143.83,143.75,12.97]
[1724277367478,45.25098,143.82,143.75,12.97]
[1724277367647,50.74955127,143.82,143.75,12.97]
[1724277367947,5.49857127,143.81,143.75,12.97]
[1724277368148,50.49857127,143.8,143.75,12.97]
[1724277368363,5.49857127,143.79,143.75,12.97]
[1724277368647,5.49857127,143.78,143.75,12.97]
[1724277368845,45.0,143.8,143.75,12.97]
[1724277369057,5.49857137,143.79,143.75,12.97]
[1724277369264,5.49857137,143.78,143.75,12.97]
[1724277369465,5.49857137,143.77,143.75,12.97]
[1724277369658,45.0,143.8,143.75,12.97]
[1724277369976,5.49857239,143.79,143.75,12.97]
[1724277370270,5.49857239,143.78,143.75,12.97]
[1724277370449,45.0,143.8,143.75,12.97]
[1724277370649,5.49832605,143.79,143.75,12.97]
[1724277370866,5.49832513,143.78,143.75,12.97]
[1724277371057,45.0,143.8,143.75,12.97]
[1724277371262,5.49831414,143.79,143.75,12.97]
[1724277371564,50.49831414,143.78,143.75,12.97]
[1724277371752,5.49831414,143.78,143.75,12.97]
[1724277372282,5.49831414,143.78,143.72,29.48012757]
[1724277372571,5.49831414,143.78,143.74,12.97]
[1724277372762,5.49831414,143.77,143.75,20.0]
[1724277373148,1.73907353,143.79,143.73,20.0]
[1724277373451,1.73907353,143.79,143.72,12.97]
[1724277374253,1.73907353,143.79,143.71,15.8851]
[1724277374468,1.73907353,143.79,143.72,12.97]
[1724277374868,1.73907353,143.79,143.71,15.8851]
[1724277375075,1.73907353,143.79,143.73,12.97]
[1724277375875,45.12549,143.8,143.73,12.97]
[1724277376054,0.25098,143.79,143.73,12.97]
[1724277377473,17.52579791,143.79,143.73,12.97]
[1724277377658,45.0,143.78,143.73,12.97]
[1724277377860,5.49942919,143.77,143.73,12.97]
[1724277378068,45.0,143.76,143.73,12.97]
[1724277378266,5.49942919,143.75,143.73,12.97]
[1724277378580,5.49942919,143.74,143.73,12.97]
[1724277378783,45.0,143.76,143.73,32.97]
[1724277379281,5.49941617,143.75,143.73,32.97]
[1724277379457,45.0,143.76,143.73,32.97]
[1724277381070,15.78648,143.79,143.73,32.97]
[1724277381273,45.0,143.78,143.73,32.97]
[1724277392191,15.5355,143.79,143.73,32.97]
[1724277396899,6.0072,143.81,143.73,32.97]
[1724277397097,45.12549,143.8,143.73,32.97]
[1724277397502,58.09549,143.8,143.73,20.0]
[1724277397683,8.81915289,143.79,143.7,6.0555]
[1724277397876,60.70369,143.78,143.7,12.97]
[1724277398071,1.86513423,143.77,143.67,30.35469503]
[1724277398272,1.86513492,143.76,143.69,12.97]
[1724277398504,0.12549,143.77,143.71,12.97]
[1724277399082,8.70730973,143.73,143.71,12.97]
[1724277399294,12.17265043,143.72,143.7,12.97]
[1724277399497,8.68972654,143.71,143.7,12.97]
[1724277400092,8.70730973,143.74,143.7,12.97]
[1724277400292,8.68972186,143.73,143.7,12.97]
[1724277400509,8.68972186,143.72,143.7,12.97]
[1724277400708,8.70730973,143.74,143.7,12.97]
[1724277400917,8.68976797,143.73,143.7,12.97]
[1724277401203,55.68046774,143.72,143.64,0.8579823]
[1724277401496,8.70963924,143.69,143.64,0.8579823]
[1724277401704,55.43014834,143.68,143.64,0.8579823]
[1724277402017,8.69272118,143.67,143.64,13.8279823]
[1724277402176,45.0,143.66,143.64,0.8579823]
[1724277402375,17.40474407,143.65,143.64,0.8579823]
[1724277402598,8.69510483,143.65,143.64,0.8579823]
[1724277403903,15.2246,143.7,143.64,0.8579823]
[1724277404106,8.69459846,143.65,143.64,0.8579823]
[1724277404285,8.71206747,143.68,143.64,0.8579823]
[1724277404482,57.17977686,143.67,143.64,0.8579823]
[1724277404690,8.69485116,143.66,143.64,0.8579823]
[1724277404889,45.0,143.67,143.64,0.8579823]
[1724277405090,8.69484493,143.66,143.64,0.8579823]
[1724277405283,1.74036463,143.68,143.64,0.8579823]
[1724277405503,8.94547,143.67,143.64,0.8579823]
[1724277405805,53.69449,143.66,143.64,0.8579823]
[1724277406008,45.0,143.66,143.64,0.8579823]
[1724277406186,45.0,143.67,143.64,0.8579823]
[1724277406386,45.0,143.68,143.64,0.8579823]
[1724277406591,8.69495451,143.67,143.64,0.8579823]
[1724277406807,45.0,143.68,143.64,0.8579823]
[1724277407106,8.69494795,143.67,143.64,0.8579823]
[1724277407313,45.0,143.68,143.64,0.8579823]
[1724277407485,8.6949465,143.67,143.64,0.8579823]
[1724277407687,45.0,143.68,143.64,0.8579823]
[1724277407888,8.6947445,143.67,143.64,0.8579823]
[1724277408187,45.0,143.69,143.64,0.8579823]
[1724277408391,8.69464495,143.68,143.64,0.8579823]
[1724277408588,45.0,143.69,143.64,0.8579823]
[1724277408802,8.69464206,143.68,143.64,0.8579823]
[1724277409008,45.0,143.69,143.64,0.8579823]
[1724277409228,8.6949465,143.68,143.64,0.8579823]
[1724277409403,45.0,143.69,143.64,0.8579823]
[1724277409592,10.43530221,143.68,143.64,0.8579823]
[1724277409787,10.43578822,143.67,143.64,0.8579823]
[1724277410005,1.74037735,143.67,143.64,0.8579823]
[1724277410806,1.74037757,143.68,143.64,0.8579823]
[1724277411719,1.74038079,143.67,143.64,0.8579823]
[1724277412725,1.74039576,143.68,143.64,0.8579823]
[1724277412922,1.74038182,143.67,143.64,0.8579823]
[1724277413894,1.74037762,143.68,143.64,0.8579823]
[1724277416612,45.0,143.69,143.64,0.8579823]
[1724277417013,45.0,143.69,143.64,13.8279823]
[1724277418124,45.0,143.69,143.64,0.8579823]
[1724277419799,45.0,143.69,143.64,13.8279823]
[1724277421224,1.74025971,143.68,143.64,13.8279823]
[1724277422270,45.0,143.69,143.64,13.8279823]
[1724277425757,45.0,143.69,143.64,0.8579823]
[1724277426126,0.12549,143.72,143.64,0.8579823]
[1724277426424,8.69360386,143.71,143.64,0.8579823]
[1724277426636,45.0,143.7,143.64,0.8579823]
[1724277426931,45.25098,143.72,143.64,13.8279823]
[1724277427133,8.69362319,143.71,143.64,13.8279823]
[1724277427349,45.0,143.7,143.64,13.8279823]
[1724277427524,45.25098,143.72,143.64,13.8279823]
[1724277427725,8.69362319,143.71,143.64,13.8279823]
[1724277427950,45.0,143.7,143.64,13.8279823]
[1724277428228,45.25098,143.72,143.64,13.8279823]
[1724277428529,8.69362608,143.71,143.64,13.8279823]
[1724277428731,45.0,143.7,143.64,13.8279823]
[1724277431756,1.74020201,143.69,143.64,0.8579823]
[1724277432136,1.74020201,143.69,143.64,20.8579823]
[1724277439140,1.74020201,143.69,143.64,0.8579823]
[1724277439561,5.5024658,143.68,143.64,0.8579823]
[1724277439868,45.0,143.7,143.64,0.8579823]
[1724277440084,5.50243452,143.69,143.64,13.8279823]
[1724277440259,5.50243452,143.68,143.64,13.8279823]
[1724277440569,53.71107008,143.71,143.64,13.8279823]
[1724277440771,14.19608867,143.7,143.64,0.8579823]
[1724277440945,14.19608867,143.69,143.64,0.8579823]
[1724277441145,5.50246395,143.68,143.64,0.8579823]
[1724277441345,5.50246395,143.67,143.64,0.8579823]
[1724277441561,53.71107008,143.71,143.64,0.8579823]
[1724277441874,14.19609813,143.7,143.64,0.8579823]
[1724277442091,14.19609813,143.69,143.64,0.8579823]
[1724277442379,5.50246764,143.68,143.64,0.8579823]
[1724277442584,1.74020375,143.7,143.64,0.8579823]
[1724277442751,8.69357569,143.69,143.64,0.8579823]
[1724277442950,5.50243267,143.68,143.64,0.8579823]
[1724277443161,5.50243267,143.67,143.64,0.8579823]
[1724277443368,10.45127383,143.7,143.64,0.8579823]
[1724277443568,14.19609103,143.69,143.64,0.8579823]
[1724277443874,15.93629617,143.68,143.64,0.8579823]
[1724277444083,5.50246487,143.67,143.64,0.8579823]
[1724277444289,5.50246487,143.66,143.64,0.8579823]
[1724277444586,8.71107008,143.7,143.64,0.8579823]
[1724277444884,14.19609103,143.69,143.64,0.8579823]
[1724277445178,14.19609103,143.68,143.64,0.8579823]
[1724277445344,14.19609103,143.67,143.64,0.8579823]
[1724277445550,5.50246487,143.66,143.64,0.8579823]
[1724277445750,8.7110754,143.69,143.64,0.8579823]
[1724277445953,14.19601074,143.68,143.64,0.8579823]
[1724277446260,14.19601074,143.67,143.64,0.8579823]
[1724277446467,14.19601074,143.66,143.64,0.8579823]
[1724277446665,5.5024336,143.65,143.64,0.8579823]
[1724277449863,14.19626886,143.65,143.64,13.8279823]
[1724277450079,14.19626886,143.65,143.64,33.8279823]
[1724277451394,5.5024336,143.65,143.64,33.8279823]
[1724277451610,45.0,143.71,143.64,33.8279823]
[1724277451781,45.0,143.7,143.64,33.8279823]
[1724277451985,5.50220637,143.7,143.64,33.8279823]
[1724277452185,14.19542736,143.69,143.64,33.8279823]
[1724277452502,14.19542736,143.68,143.64,33.8279823]
[1724277452714,45.25098,143.72,143.64,33.8279823]
[1724277452715,14.19542736,143.67,143.64,33.8279823]
[1724277452889,5.50220637,143.66,143.64,33.8279823]
[1724277453090,45.25098,143.72,143.64,33.8279823]
[1724277453280,14.195425,143.71,143.64,33.8279823]
[1724277453479,14.195425,143.7,143.64,33.8279823]
[1724277453680,14.195425,143.69,143.64,33.8279823]
[1724277453887,14.195425,143.68,143.64,33.8279823]
[1724277454190,14.195425,143.67,143.64,33.8279823]
[1724277454386,5.50220545,143.66,143.65,16.2592]
[1724277454604,8.69278827,143.73,143.65,42.3412]
[1724277454814,14.1940057,143.72,143.69,12.97]
[1724277454983,14.1940057,143.71,143.69,12.97]
[1724277455183,14.1940057,143.7,143.69,12.97]
[1724277455515,6.6127,143.75,143.69,12.97]
[1724277455679,45.0,143.74,143.69,12.97]
[1724277457408,5.50154707,143.73,143.69,12.97]
[1724277457581,5.50154707,143.72,143.69,12.97]
[1724277457784,5.50154707,143.71,143.69,12.97]
[1724277457994,5.50154707,143.7,143.69,12.97]
[1724277458209,45.0,143.74,143.69,12.97]
[1724277458791,5.50151856,143.73,143.69,12.97]
[1724277458998,5.50151856,143.73,143.66,20.0]
[1724277458999,5.50151856,143.72,143.67,12.97]
[1724277459196,5.50151856,143.71,143.67,12.97]
[1724277459399,5.50151856,143.7,143.67,12.97]
[1724277459610,5.50151856,143.69,143.67,12.97]
[1724277459793,5.50181567,143.68,143.67,12.97]
[1724277460112,45.0,143.74,143.67,32.97]
[1724277460326,5.50163282,143.73,143.67,12.97]
[1724277460495,5.50163282,143.72,143.67,12.97]
[1724277460695,5.50163282,143.71,143.66,20.0]
[1724277460898,5.50163282,143.7,143.67,12.97]
[1724277461100,5.50163282,143.69,143.67,12.97]
[1724277461301,45.0,143.74,143.67,12.97]
[1724277461522,5.50158314,143.73,143.67,12.97]
[1724277461696,5.50158314,143.72,143.67,12.97]
[1724277462016,5.50158314,143.71,143.67,12.97]
[1724277462217,45.0,143.74,143.67,12.97]
[1724277462218,5.50158314,143.7,143.67,12.97]
[1724277462424,5.50158314,143.69,143.67,12.97]
[1724277462588,45.0,143.74,143.67,12.97]
[1724277462794,5.50158314,143.73,143.67,12.97]
[1724277462995,5.50158314,143.72,143.67,12.97]
[1724277463190,5.50158314,143.71,143.67,12.97]
[1724277463388,5.50158314,143.7,143.67,12.97]
[1724277463610,5.50158314,143.69,143.67,12.97]
[1724277463789,45.0,143.74,143.67,12.97]
[1724277463989,5.50160482,143.73,143.67,12.97]
[1724277464212,5.50160482,143.72,143.67,12.97]
[1724277464420,5.50160482,143.71,143.67,12.97]
[1724277464732,45.12549,143.75,143.67,12.97]
[1724277464888,5.50161809,143.7,143.67,12.97]
[1724277465089,5.50161809,143.69,143.67,12.97]
[1724277465337,45.12549,143.75,143.67,12.97]
[1724277465498,5.50158775,143.74,143.67,12.97]
[1724277465698,5.50158775,143.73,143.67,12.97]
[1724277465901,5.50158775,143.72,143.67,12.97]
[1724277466126,5.50158775,143.71,143.67,12.97]
[1724277466334,5.50158775,143.7,143.67,12.97]
[1724277466627,45.12549,143.75,143.67,12.97]
[1724277466628,5.50158775,143.69,143.67,12.97]
[1724277466834,45.12549,143.75,143.67,12.97]
[1724277467002,5.50158775,143.74,143.67,12.97]
[1724277467203,5.50158775,143.73,143.67,12.97]
[1724277467401,5.50158775,143.72,143.67,12.97]
[1724277467703,5.50158775,143.71,143.67,12.97]
[1724277468002,5.50158775,143.7,143.67,12.97]
[1724277468207,5.50158775,143.69,143.67,12.97]
[1724277468404,45.12549,143.75,143.67,12.97]
[1724277468735,5.50155556,143.74,143.67,12.97]
[1724277469041,45.12549,143.75,143.67,12.97]
[1724277469042,5.50155556,143.73,143.67,12.97]
[1724277469320,5.50155556,143.72,143.67,12.97]
[1724277469496,5.50155556,143.71,143.67,12.97]
[1724277469699,5.50155556,143.7,143.67,12.97]
[1724277470016,5.50155556,143.69,143.67,12.97]
[1724277470319,45.12549,143.75,143.67,12.97]
[1724277470522,5.50155003,143.74,143.67,12.97]
[1724277470721,5.50155003,143.73,143.67,12.97]
[1724277470924,5.50155003,143.72,143.67,12.97]
[1724277471128,5.50155003,143.71,143.67,12.97]
[1724277471307,5.50155003,143.7,143.67,12.97]
[1724277471610,5.50155003,143.69,143.67,12.97]
[1724277471814,45.12549,143.75,143.67,12.97]
[1724277472123,5.50155556,143.74,143.67,12.97]
[1724277472423,5.50155556,143.73,143.67,12.97]
[1724277472603,5.50155556,143.72,143.67,12.97]
[1724277472796,5.50155556,143.71,143.67,12.97]
[1724277472998,5.50155556,143.7,143.67,12.97]
[1724277473223,5.50155556,143.69,143.67,12.97]
[1724277473423,45.12549,143.75,143.67,12.97]
[1724277473625,5.50155003,143.74,143.67,12.97]
[1724277473811,5.50155003,143.73,143.67,12.97]
[1724277474012,5.50155003,143.72,143.67,12.97]
[1724277474211,5.50155003,143.71,143.67,12.97]
[1724277474432,5.50155003,143.7,143.67,12.97]
[1724277474612,5.50155003,143.69,143.67,12.97]
[1724277474814,45.12549,143.75,143.67,12.97]
[1724277475014,5.50155556,143.74,143.67,12.97]
[1724277475213,5.50155556,143.73,143.67,12.97]
[1724277475419,5.50155556,143.72,143.67,12.97]
[1724277475726,5.50155556,143.71,143.67,12.97]
[1724277475932,5.50155556,143.7,143.67,12.97]
[1724277476222,5.50155556,143.69,143.67,12.97]
[1724277476409,45.12549,143.75,143.67,12.97]
[1724277476608,5.50158775,143.74,143.67,12.97]
[1724277476810,5.50158775,143.73,143.67,12.97]
[1724277477018,45.12549,143.75,143.67,12.97]
[1724277477019,5.50158775,143.72,143.67,12.97]
[1724277477215,5.50158775,143.71,143.67,12.97]
[1724277477417,5.50158775,143.7,143.67,12.97]
[1724277477625,5.50158775,143.69,143.67,12.97]
[1724277477931,45.12549,143.75,143.67,12.97]
[1724277478132,5.50158775,143.74,143.67,12.97]
[1724277478431,5.50158775,143.73,143.67,12.97]
[1724277478623,5.50158775,143.72,143.67,12.97]
[1724277478823,5.50158775,143.71,143.67,12.97]
[1724277479023,5.50158775,143.7,143.67,12.97]
[1724277479220,5.50158775,143.69,143.67,12.97]
[1724277479422,45.12549,143.75,143.67,12.97]
[1724277479719,5.50158775,143.74,143.67,12.97]
[1724277479911,5.50158775,143.73,143.67,12.97]
[1724277480112,5.50158775,143.72,143.67,12.97]
[1724277480411,5.50158775,143.71,143.67,12.97]
[1724277480611,5.50158775,143.7,143.67,12.97]
[1724277480823,5.50158683,143.69,143.67,12.97]
[1724277481025,45.12549,143.75,143.67,12.97]
[1724277481237,5.50158222,143.74,143.67,12.97]
[1724277481434,5.50158222,143.73,143.67,12.97]
[1724277481605,5.50158406,143.72,143.67,12.97]
[1724277481809,5.50158406,143.71,143.67,12.97]
[1724277482011,5.50158406,143.7,143.67,12.97]
[1724277482213,45.0,143.75,143.67,12.97]
[1724277482214,5.50158406,143.69,143.67,12.97]
[1724277482429,45.0,143.75,143.67,12.97]
[1724277482627,5.50158222,143.74,143.67,12.97]
[1724277482929,5.50158222,143.73,143.67,12.97]
[1724277483130,5.50158222,143.72,143.67,12.97]
[1724277483330,5.50158222,143.71,143.67,12.97]
[1724277483630,5.50158222,143.7,143.67,12.97]
[1724277483815,5.5015859,143.69,143.67,12.97]
[1724277484024,45.0,143.75,143.67,12.97]
[1724277484323,5.50158222,143.74,143.66,40.0]
[1724277484633,5.50158222,143.73,143.67,12.97]
[1724277484834,5.50158222,143.72,143.67,12.97]
[1724277485032,5.50158222,143.71,143.67,12.97]
[1724277485235,5.50158222,143.7,143.67,12.97]
[1724277485410,5.50158222,143.69,143.67,12.97]
[1724277485611,45.0,143.75,143.67,12.97]
[1724277485825,14.19376499,143.74,143.67,12.97]
[1724277486133,14.19376499,143.73,143.67,12.97]
[1724277486331,14.19376499,143.72,143.67,12.97]
[1724277486536,14.19376499,143.71,143.67,12.97]
[1724277486742,14.19376499,143.7,143.67,12.97]
[1724277487046,45.0,143.75,143.67,12.97]
[1724277487247,5.50158725,143.69,143.67,12.97]
[1724277487745,5.50158725,143.68,143.67,12.97]
[1724277487928,5.50158725,143.68,143.67,20.0]
[1724277488233,5.50158725,143.68,143.67,32.97]
[1724277489613,45.0,143.75,143.67,32.97]
[1724277489825,5.50158279,143.74,143.67,32.97]
[1724277490037,5.50158279,143.73,143.67,32.97]
[1724277490222,5.50158279,143.72,143.67,32.97]
[1724277490423,5.50158555,143.71,143.67,32.97]
[1724277490828,5.50158555,143.7,143.67,32.97]
[1724277491240,5.50158555,143.69,143.67,32.97]
[1724277491431,45.0,143.75,143.67,32.97]
[1724277491745,5.50154916,143.74,143.67,32.97]
[1724277491928,5.50154916,143.73,143.67,32.97]
[1724277492129,5.50154916,143.72,143.67,20.0]
[1724277492323,5.50154916,143.71,143.67,32.97]
[1724277492650,5.50154916,143.7,143.67,32.97]
[1724277492866,5.50154916,143.69,143.67,32.97]
[1724277493150,1.7396287,143.74,143.67,32.97]
[1724277493447,5.501583,143.73,143.67,32.97]
[1724277493823,5.5015881,143.72,143.67,32.97]
[1724277494119,5.5015881,143.71,143.67,32.97]
[1724277494313,5.5015881,143.7,143.67,32.97]
[1724277494520,5.5015881,143.69,143.67,32.97]
[1724277494724,1.73959847,143.74,143.67,32.97]
[1724277494930,5.50157484,143.73,143.67,32.97]
[1724277495133,5.50157484,143.72,143.67,32.97]
[1724277495362,5.50153987,143.71,143.67,32.97]
[1724277495538,5.50153987,143.7,143.67,32.97]
[1724277495721,5.50153987,143.69,143.67,32.97]
[1724277495921,1.73959847,143.74,143.67,32.97]
[1724277496331,5.50155497,143.73,143.67,32.97]
[1724277496741,7.24115197,143.73,143.67,20.0]
[1724277496943,7.24115197,143.73,143.66,20.0]
[1724277497139,5.50155172,143.72,143.66,20.0]
[1724277497542,5.50155172,143.71,143.66,20.0]
[1724277497746,1.7397663,143.74,143.66,20.0]
[1724277498074,7.24152465,143.73,143.66,20.0]
[1724277498239,5.50180796,143.72,143.66,20.0]
[1724277498440,5.50180796,143.71,143.66,20.0]
[1724277498659,5.50180796,143.7,143.66,20.0]
[1724277498868,5.50180796,143.69,143.66,20.0]
[1724277499071,5.50180796,143.68,143.66,20.0]
[1724277499234,1.73971669,143.73,143.66,20.0]
[1724277499441,5.50158903,143.72,143.66,20.0]
[1724277499734,5.50158903,143.71,143.66,20.0]
[1724277499940,5.50158903,143.7,143.66,20.0]
[1724277500169,5.50158903,143.69,143.66,20.0]
[1724277500473,5.50158903,143.68,143.66,20.0]
[1724277500645,1.7397182,143.74,143.66,20.0]
[1724277500646,5.50158903,143.67,143.66,20.0]
[1724277501281,5.50159037,143.67,143.66,20.0]
[1724277502854,1.7397182,143.74,143.66,20.0]
[1724277503058,7.24127317,143.73,143.67,12.97]
[1724277503264,5.50155466,143.72,143.67,12.97]
[1724277503443,5.50155466,143.71,143.67,12.97]
[1724277503752,5.50155466,143.7,143.67,12.97]
[1724277503956,5.50155466,143.69,143.67,12.97]
[1724277504139,5.50155466,143.68,143.67,12.97]
[1724277504349,5.50155466,143.68,143.67,32.97]
[1724277507904,5.50155508,143.68,143.67,32.97]
[1724277509666,5.50155508,143.68,143.67,20.0]
[1724277510453,5.50155508,143.68,143.66,20.0]
[1724277510653,5.50155508,143.67,143.66,20.0]
[1724277511147,5.50184893,143.67,143.66,20.0]
[1724277516569,5.50184893,143.67,143.66,32.97]
[1724277517062,6.2772,143.74,143.66,32.97]
[1724277517378,5.50158501,143.73,143.68,12.97]
[1724277517690,5.50158501,143.72,143.68,12.97]
[1724277517904,5.50158501,143.71,143.68,12.97]
[1724277518100,5.50158501,143.7,143.68,12.97]
[1724277518266,5.50158501,143.69,143.68,12.97]
[1724277519377,15.5706,143.76,143.68,52.97]
[1724277519570,5.50116194,143.75,143.72,12.97]